lending/lending_fUSD_20240509
["ID","MTS","AMOUNT","RATE_DAILY","PERIOD"]
[326684953,1715221843734,-515.19114619,0.00027944,5]
[326684954,1715221843745,-511.3876801,0.00027944,5]
[326684955,1715221843756,-511.21466197,0.00027944,5]
[326684956,1715221843765,-510.64303961,0.00027944,5]
[326684957,1715221843774,-524.78694425,0.00027944,5]
[326684958,1715221843784,-624.42854225,0.00027944,5]
[326684959,1715221843793,-510.78720038,0.00027944,5]
[326684960,1715221843802,-520.70500056,0.00027944,5]
[326684961,1715221843812,-513.3352111,0.00027944,5]
[326684962,1715221843821,-517.51685394,0.00027944,5]
[326684963,1715221843831,-508.91744169,0.00027944,5]
[326684964,1715221843842,-370.14622871,0.00027944,5]
[326684965,1715221843852,-518.38759129,0.00027944,5]
[326684966,1715221843862,-514.19364951,0.00027944,5]
[326684967,1715221843872,-509.1920063,0.00027944,5]
[326684968,1715221843882,-512.65185919,0.00027944,5]
[326684969,1715221843891,-306.15035815,0.00027944,5]
[326684970,1715221843902,-515.81003605,0.00027944,5]
[326684971,1715221843912,-509.84000441,0.00027944,5]
[326684972,1715221843922,-526.16669805,0.00027944,5]
[326684973,1715221843931,-510.734559,0.00027944,5]
[326684974,1715221843941,-529.67,0.00027944,5]
[326684975,1715221843950,-577.86,0.00027944,5]
[326684976,1715221843960,-500.0,0.00027944,5]
[326684977,1715221843970,-511.12160419,0.00027944,5]
[326684978,1715221843981,-500.0,0.00027944,5]
[326684979,1715221843990,-500.0,0.00027944,5]
[326684980,1715221843999,-500.0,0.00027944,5]
[326684981,1715221844008,-500.0,0.00027944,5]
[326684982,1715221844018,-517.37522505,0.00027944,5]
[326684983,1715221844027,-528.43,0.00027944,5]
[326684984,1715221844036,-500.0,0.00027944,5]
[326684985,1715221844045,-508.27421161,0.00027944,5]
[326684986,1715221844055,-500.0,0.00027944,5]
[326684987,1715221844064,-508.53576651,0.00027944,5]
[326684988,1715221844073,-616.79813856,0.00027944,5]
[326684989,1715221844083,-550.22617874,0.00027944,5]
[326684990,1715221844092,-624.9009449,0.00027944,5]
[326684991,1715221844102,-517.17036323,0.00027944,5]
[326684992,1715221844111,-528.2406663,0.00027944,5]
[326684993,1715221844119,-512.945767,0.00027944,5]
[326684994,1715221844129,-511.41461688,0.00027944,5]
[326684995,1715221844139,-500.0,0.00027944,5]
[326684996,1715221844148,-512.94136226,0.00027944,5]
[326684997,1715221844161,-508.30720983,0.00027944,5]
[326684998,1715221844170,-519.23238846,0.00027944,5]
[326684999,1715221844180,-513.611883,0.00027944,5]
[326685000,1715221844190,-508.97806344,0.00027944,5]
[326685001,1715221844201,-516.08968345,0.00027944,5]
[326685002,1715221844210,-500.0,0.00027944,5]
[326685003,1715221844219,-508.14503956,0.00027944,5]
[326685004,1715221844228,-500.0,0.00027944,5]
[326685005,1715221844240,-512.79591332,0.00027944,5]
[326685006,1715221844251,-511.41420082,0.00027944,5]
[326685007,1715221844260,-511.66128799,0.00027944,5]
[326685008,1715221844269,-500.0,0.00027944,5]
[326685009,1715221844279,-509.08562198,0.00027944,5]
[326685010,1715221844288,-515.0383535,0.00027944,5]
[326685011,1715221844297,-511.90329054,0.00027944,5]
[326685012,1715221844307,-508.90942233,0.00027944,5]
[326685013,1715221844316,-526.63996213,0.00027944,5]
[326685014,1715221844325,-508.2361597,0.00027944,5]
[326685015,1715221844335,-512.32687569,0.00027944,5]
[326685016,1715221844344,-509.93232248,0.00027944,5]
[326685017,1715221844354,-500.0,0.00027944,5]
[326685018,1715221844363,-500.0,0.00027944,5]
[326685019,1715221844372,-500.0,0.00027944,5]
[326685020,1715221844382,-527.41487747,0.00027944,5]
[326685021,1715221844391,-527.02809564,0.00027944,5]
[326685022,1715221844400,-500.0,0.00027944,5]
[326685023,1715221844409,-500.0,0.00027944,5]
[326685024,1715221844418,-509.24041139,0.00027944,5]
[326685025,1715221844427,-516.15583636,0.00027944,5]
[326685026,1715221844437,-526.43521809,0.00027944,5]
[326685027,1715221844446,-593.98506529,0.00027944,5]
[326685028,1715221844455,-500.0,0.00027944,5]
[326685029,1715221844465,-500.0,0.00027944,5]
[326685030,1715221844474,-458.445865,0.00027944,5]
[326685031,1715221844483,-521.59175358,0.00027944,5]
[326685032,1715221844496,-511.19186001,0.00027944,5]
[326685033,1715221844505,-578.68028326,0.00027944,5]
[326685034,1715221844514,-500.0,0.00027944,5]
[326685035,1715221844524,-508.61584,0.00027944,5]
[326685036,1715221844534,-515.37451774,0.00027944,5]
[326685037,1715221844543,-621.06718302,0.00027944,5]
[326685038,1715221844552,-514.53310723,0.00027944,5]
[326685039,1715221844562,-500.0,0.00027944,5]
[326685040,1715221844571,-500.0,0.00027944,5]
[326685041,1715221844580,-585.03458094,0.00027944,5]
[326685042,1715221844590,-532.90426993,0.00027944,5]
[326685043,1715221844599,-231.9969154,0.00027944,5]
[326685044,1715221844609,-508.61648032,0.00027944,5]
[326685045,1715221844618,-524.54111277,0.00027944,5]
[326685046,1715221844628,-515.52325597,0.00027944,5]
[326685047,1715221844637,-518.6159098,0.00027944,5]
[326685048,1715221844647,-523.06212666,0.00027944,5]
[326685049,1715221844656,-500.0,0.00027944,5]
[326685050,1715221844665,-511.66865442,0.00027944,5]
[326685051,1715221844675,-500.0,0.00027944,5]
[326685052,1715221844684,-511.92098525,0.00027944,5]
[326685053,1715221844694,-514.76379762,0.00027944,5]
[326685054,1715221844703,-500.0,0.00027944,5]
[326685055,1715221844712,-516.89672202,0.00027944,5]
[326685056,1715221844722,-510.10253552,0.00027944,5]
[326685057,1715221844731,-500.0,0.00027944,5]
[326685058,1715221844740,-513.36440726,0.00027944,5]
[326685059,1715221844751,-644.31,0.00027944,5]
[326685060,1715221844761,-500.0,0.00027944,5]
[326685061,1715221844770,-510.79514625,0.00027944,5]
[326685062,1715221844779,-500.0,0.00027944,5]
[326685063,1715221844788,-201.00913496,0.00027944,5]
[326685064,1715221844797,-701.1,0.00027944,5]
[326685065,1715221844806,-307.99962167,0.00027944,5]
[326685066,1715221844815,-517.04840371,0.00027944,5]
[326685067,1715221844825,-727.05,0.00027944,5]
[326685068,1715221844834,-515.18435499,0.00027944,5]
[326685069,1715221844843,-500.0,0.00027944,5]
[326685070,1715221844853,-652.29,0.00027944,5]
[326685071,1715221844862,-424.2192179,0.00027944,5]
[326685072,1715221844872,-509.06398087,0.00027944,5]
[326685073,1715221844882,-519.76650165,0.00027944,5]
[326685074,1715221844891,-517.54492158,0.00027944,5]
[326685075,1715221844901,-1178.6,0.00027944,5]
[326685076,1715221844911,-500.0,0.00027944,5]
[326685077,1715221844920,-547.71244488,0.00027944,5]
[326685078,1715221844930,-500.0,0.00027944,5]
[326685079,1715221844939,-509.74922376,0.00027944,5]
[326685080,1715221844948,-500.0,0.00027944,5]
[326685081,1715221844958,-490.2387626,0.00027944,5]
[326685082,1715221844967,-500.0,0.00027944,5]
[326685083,1715221844977,-1639.67,0.00027944,5]
[326685084,1715221844986,-516.7687053,0.00027944,5]
[326685085,1715221844996,-500.0,0.00027944,5]
[326685086,1715221845005,-2780.06,0.00027944,5]
[326685087,1715221845015,-500.0,0.00027944,5]
[326685088,1715221845024,-1111.02,0.00027944,5]
[326685089,1715221845034,-635.91,0.00027944,5]
[326685090,1715221845043,-512.40699383,0.00027944,5]
[326685091,1715221845052,-512.03104107,0.00027944,5]
[326685092,1715221845061,-2446.17,0.00027944,2]
[326685093,1715221845071,-4153.73,0.00027944,5]
[326685094,1715221845081,-511.62649045,0.00027944,5]
[326685095,1715221845090,-1118.09,0.00027944,5]
[326685096,1715221845101,-507.34983603,0.00027944,5]
[326685097,1715221845111,-403.48443982,0.00027944,5]
[326685098,1715221845120,-552.46542512,0.00027944,5]
[326685099,1715221845129,-512.0171596,0.00027944,5]
[326685100,1715221845139,-2316.57,0.00027944,5]
[326685101,1715221845149,-500.0,0.00027944,5]
[326685102,1715221845161,-514.84094274,0.00027944,5]
[326685103,1715221845171,-1533.72,0.00027944,5]
[326685104,1715221845179,-515.58742993,0.00027944,5]
[326685105,1715221845195,-500.0,0.00027944,5]
[326685106,1715221845218,-511.5724085,0.00027944,5]
[326685107,1715221845228,-500.0,0.00027944,5]
[326685108,1715221845238,-512.13951589,0.00027944,5]
[326685109,1715221845250,-195.9690564,0.00027944,5]
[326685110,1715221845259,-506.97164017,0.00027944,5]
[326685111,1715221845268,-618.26,0.00027944,5]
[326685112,1715221845277,-15852.34,0.00027944,5]
[326685113,1715221845286,-500.0,0.00027944,5]
[326685114,1715221845297,-498.33286904,0.00027944,5]
[326685115,1715221845306,-500.0,0.00027944,5]
[326685116,1715221845315,-500.0,0.00027945,5]
[326685117,1715221845324,-500.0,0.00027945,5]
[326685118,1715221845334,-500.0,0.00027945,5]
[326685119,1715221845343,-575.13199753,0.00027945,5]
[326685120,1715221845352,-521.79031158,0.00027945,5]
[326685121,1715221845362,-500.0,0.00027945,2]
[326685122,1715221845371,-172.02269741,0.00027945,5]
[326685123,1715221845381,-500.0,0.00027945,5]
[326685124,1715221845391,-551.22271524,0.00027945,5]
[326685125,1715221845400,-1204.77,0.00027945,5]
[326685126,1715221845409,-500.0,0.00027945,5]
[326685127,1715221845418,-267.65767602,0.00027945,5]
[326685128,1715221845427,-536.32819505,0.00027945,5]
[326685129,1715221845436,-500.0,0.00027945,5]
[326685130,1715221845445,-500.0,0.00027945,5]
[326685131,1715221845454,-564.29,0.00027945,5]
[326685132,1715221845464,-558.10210428,0.00027945,5]
[326685133,1715221845473,-500.0,0.00027945,5]
[326685134,1715221845483,-518.07555977,0.00027945,5]
[326685135,1715221845493,-525.73,0.00027945,5]
[326685136,1715221845502,-667.75,0.00027945,5]
[326685137,1715221845511,-320.41851165,0.00027945,5]
[326685138,1715221845520,-500.0,0.00027945,5]
[326685139,1715221845530,-529.30211884,0.00027945,5]
[326685140,1715221845539,-894.92,0.00027945,5]
[326685141,1715221845547,-500.0,0.00027945,5]
[326685142,1715221845556,-500.0,0.00027945,5]
[326685143,1715221845565,-830.54,0.00027945,5]
[326685144,1715221845574,-500.0,0.00027945,5]
[326685145,1715221845583,-361.97,0.00027945,5]
[326685146,1715221845592,-526.61428089,0.00027945,5]
[326685147,1715221845601,-410.50109597,0.00027945,5]
[326685148,1715221845610,-500.0,0.00027945,5]
[326685149,1715221845619,-1016.54,0.00027945,5]
[326685150,1715221845628,-500.0,0.00027945,5]
[326685151,1715221845638,-1279.22,0.00027945,5]
[326685152,1715221845648,-500.0,0.00027945,5]
[326685153,1715221845658,-500.0,0.00027945,5]
[326685154,1715221845667,-500.0,0.00027945,5]
[326685155,1715221845676,-862.44,0.00027945,5]
[326685156,1715221845685,-500.0,0.00027945,5]
[326685157,1715221845695,-500.0,0.00027945,5]
[326685158,1715221845703,-185.14,0.00027945,5]
[326685159,1715221845712,-500.0,0.00027945,5]
[326685160,1715221845722,-500.0,0.00027945,5]
[326685161,1715221845732,-500.0,0.00027945,5]
[326685162,1715221845742,-500.0,0.00027945,5]
[326685163,1715221845753,-500.0,0.00027945,5]
[326685164,1715221845762,-500.0,0.00027945,5]
[326685165,1715221845771,-500.0,0.00027945,5]
[326685166,1715221845781,-500.0,0.00027945,5]
[326685167,1715221845802,-523.38778459,0.00027945,5]
[326685168,1715221845811,-365.5211062,0.00027945,5]
[326685169,1715221845822,-519.69019162,0.00027945,5]
[326685170,1715221845832,-785.56,0.00027945,5]
[326685171,1715221845841,-500.0,0.00027945,5]
[326685172,1715221845851,-596.35,0.00027945,5]
[326685173,1715221845861,-500.0,0.00027945,5]
[326685174,1715221845870,-991.29,0.00027945,5]
[326685175,1715221845880,-750.02,0.00027945,5]
[326685176,1715221845889,-500.0,0.00027945,5]
[326685177,1715221845898,-500.0,0.00027945,5]
[326685178,1715221845907,-500.0,0.00027945,5]
[326685179,1715221845917,-500.0,0.00027945,5]
[326685180,1715221845926,-500.0,0.00027945,5]
[326685181,1715221845935,-500.0,0.00027945,5]
[326685182,1715221845945,-740.65,0.00027945,5]
[326685183,1715221845956,-757.66,0.00027945,5]
[326685184,1715221845965,-500.0,0.00027945,5]
[326685185,1715221845975,-500.0,0.00027945,5]
[326685186,1715221845984,-662.25,0.00027945,5]
[326685187,1715221845993,-500.0,0.00027945,5]
[326685188,1715221846002,-511.55,0.00027945,5]
[326685189,1715221846011,-500.0,0.00027945,5]
[326685190,1715221846020,-946.4,0.00027945,5]
[326685191,1715221846030,-500.0,0.00027945,5]
[326685192,1715221846040,-500.0,0.00027945,5]
[326685193,1715221846050,-2285.17,0.00027945,5]
[326685194,1715221846059,-500.0,0.00027945,5]
[326685195,1715221846068,-713.35,0.00027945,5]
[326685196,1715221846077,-1140.74,0.00027945,5]
[326685197,1715221846088,-500.0,0.00027945,5]
[326685198,1715221846097,-500.0,0.00027945,5]
[326685199,1715221846107,-4479.94,0.00027945,5]
[326685200,1715221846117,-500.0,0.00027945,5]
[326685201,1715221846126,-7616.12,0.00027945,5]
[326685202,1715221846135,-538.51854532,0.00027945,5]
[326685203,1715221846144,-507.42316316,0.00027945,5]
[326685204,1715221846157,-1360.89,0.00027945,5]
[326685205,1715221846166,-500.0,0.00027945,5]
[326685206,1715221846175,-500.0,0.00027945,5]
[326685207,1715221846184,-607.42,0.00027945,5]
[326685208,1715221846195,-775.4,0.00027945,5]
[326685209,1715221846204,-500.0,0.00027945,5]
[326685210,1715221846213,-500.0,0.00027945,5]
[326685211,1715221846222,-500.0,0.00027945,5]
[326685212,1715221846234,-1119.13,0.00027945,5]
[326685213,1715221846243,-500.0,0.00027945,5]
[326685214,1715221846252,-749.67,0.00027945,5]
[326685215,1715221846262,-1090.3,0.00027945,5]
[326685216,1715221846271,-1606.21,0.00027945,5]
[326685217,1715221846280,-716.53,0.00027945,5]
[326685218,1715221846290,-774.34,0.00027945,5]
[326685219,1715221846299,-500.0,0.00027945,5]
[326685220,1715221846308,-500.0,0.00027945,5]
[326685221,1715221846317,-643.59,0.00027945,5]
[326685222,1715221846326,-500.0,0.00027945,5]
[326685223,1715221846336,-500.0,0.00027945,5]
[326685224,1715221846345,-667.85,0.00027945,5]
[326685225,1715221846354,-791.75,0.00027945,5]
[326685226,1715221846363,-1208.08,0.00027945,5]
[326685227,1715221846373,-767.0,0.00027945,5]
[326685228,1715221846382,-500.0,0.00027945,5]
[326685229,1715221846391,-500.0,0.00027945,5]
[326685230,1715221846400,-500.0,0.00027945,5]
[326685231,1715221846409,-7434.33,0.00027945,5]
[326685232,1715221846418,-500.0,0.00027945,5]
[326685233,1715221846427,-500.0,0.00027945,5]
[326685234,1715221846436,-500.0,0.00027945,5]
[326685235,1715221846446,-500.0,0.00027945,5]
[326685236,1715221846455,-500.0,0.00027945,5]
[326685237,1715221846463,-660.66,0.00027945,5]
[326685238,1715221846472,-681.06,0.00027945,5]
[326685239,1715221846481,-500.0,0.00027945,5]
[326685240,1715221846491,-1202.69,0.00027945,5]
[326685241,1715221846503,-500.0,0.00027945,5]
[326685242,1715221846512,-500.0,0.00027945,5]
[326685243,1715221846522,-500.0,0.00027945,5]
[326685244,1715221846532,-500.0,0.00027945,5]
[326685245,1715221846541,-672.34,0.00027945,5]
[326685246,1715221846551,-770.69,0.00027945,5]
[326685247,1715221846560,-1508.38,0.00027945,5]
[326685248,1715221846570,-30000.0,0.00028,3]
[326685249,1715221846580,-336.34366022,0.00028,30]
[326685250,1715221846592,-1242.23284316,0.00028,29]
[326685251,1715221846603,-150.0,0.00028118,2]
[326685252,1715221846613,-2100.0,0.0002824,2]
[326685253,1715221846623,-200.0,0.00028474,7]
[326685254,1715221846633,-209.0,0.00028488,14]
[326685255,1715221846642,-1042.76,0.0002849,5]
[326685256,1715221846651,-500.0,0.0002849,5]
[326685257,1715221846661,-1640.24,0.0002849,5]
[326685258,1715221846671,-982.13,0.0002849,5]
[326685259,1715221846684,-728.04,0.0002849,5]
[326685260,1715221846693,-535.32,0.0002849,5]
[326685261,1715221846702,-626.03,0.0002849,5]
[326685262,1715221846711,-4572.97095466,0.0002849,5]
[326685263,1715221846730,-3081.79999998,0.0002849,5]
[326685264,1715221846741,-829.62904536,0.0002849,5]
[326685265,1715221846752,-193.87183974,0.0002849,5]
[326685266,1715221846763,-358.48667185,0.0002849,5]
[326685267,1715221846775,-9.14148841,0.0002849,5]
[326685268,1715221846784,-349.98227463,0.0002849,5]
[326685269,1715221846793,-156.1696174,0.00028491,5]
[326685270,1715221846804,-343.8303826,0.00028491,5]
[326685271,1715221846814,-767.41372813,0.00028491,5]
[326685272,1715221846825,-79.30627187,0.00028491,5]
[326685273,1715221846834,-282.36872813,0.00028491,5]
[326685274,1715221846846,-217.63127187,0.00028491,5]
[326685275,1715221846857,-278.39605775,0.00028491,5]
[326685276,1715221846868,-221.60394225,0.00028491,5]
[326685277,1715221846878,-217.41105775,0.00028491,5]
[326685278,1715221846889,-282.58894225,0.00028491,5]
[326685279,1715221846900,-500.0,0.00028491,5]
[326685280,1715221846909,-458.51576611,0.00028491,5]
[326685281,1715221846921,-41.48423389,0.00028491,5]
[326685282,1715221846930,-347.84052737,0.00028491,5]
[326685326,1715222654350,-2000.0,0.00012331,2]
[326685327,1715222659167,-1057.4434008,0.00012331,2]
[326685328,1715222661999,942.5565992,0.0001233,2]
[326685331,1715222681371,-57.4434008,0.0001233,2]
[326685332,1715222684051,-150.0,0.00012332,2]
[326685333,1715222685068,-150.0,0.00012332,2]
[326685334,1715222686570,-176.43775847,0.00012332,2]
[326685335,1715222730402,-478.41021415,0.00012332,2]
[326685336,1715222795289,-1464.14638505,0.00012347,2]
[326685337,1715222805364,-700.0,0.00012347,2]
[326685339,1715223032565,-159.17030778,0.00012248,2]
[326685342,1715223032575,-893.29701575,0.00012347,2]
[326685344,1715223032586,-1298.87645807,0.00012348,2]
[326685346,1715223032596,-690.31309869,0.00012348,2]
[326685348,1715223032607,-189.03722931,0.00012348,2]
[326685350,1715223032616,-200.0,0.000125,4]
[326685353,1715223032626,-224.54627044,0.000126,4]
[326685358,1715223032637,-275.45372956,0.000126,4]
[326685361,1715223032647,-800.0,0.000127,4]
[326685364,1715223032656,-214.07,0.00012783,2]
[326685367,1715223032665,-1100.0,0.000128,4]
[326685369,1715223032675,-150.0,0.00012899,2]
[326685370,1715223032686,-430.93263647,0.000129,2]
[326685378,1715223036680,-1578.55756815,0.000129,2]
[326685379,1715223036692,-1288.3255546,0.000129,2]
[326685380,1715223036703,-170.18902357,0.000129,2]
[326685382,1715223036717,-202.28762076,0.000129,2]
[326685384,1715223036727,-1400.0,0.000129,4]
[326685385,1715223036738,-196.42269686,0.000129,2]
[326685386,1715223036748,-330.61703982,0.000129,2]
[326685387,1715223036758,-974.15924331,0.000129,2]
[326685388,1715223036770,-115.45714026,0.000129,2]
[326685389,1715223036779,-198.94117052,0.000129,2]
[326685390,1715223036789,-182.90111073,0.0001299,2]
[326685391,1715223036799,-164.38334923,0.0001299,2]
[326685392,1715223036811,-18.5177615,0.0001299,2]
[326685393,1715223036821,-152.69,0.0001299,2]
[326685394,1715223036831,-128.7822385,0.0001299,2]
[326685395,1715223036844,-23.9077615,0.0001299,2]
[326685396,1715223036853,-152.69,0.0001299,2]
[326685397,1715223036863,-179.49,0.0001299,2]
[326685398,1715223036873,-1000.0,0.00012998,2]
[326685399,1715223036883,-366.79653298,0.00012998,2]
[326685400,1715223036895,-257.69726089,0.00012998,2]
[326685401,1715223036907,-482.99531256,0.00012998,2]
[326685402,1715223036918,-32.06392199,0.00012998,2]
[326685403,1715223036928,-1432.81169147,0.00012998,2]
[326685404,1715223036937,-406.30496451,0.00012998,2]
[326685405,1715223036947,-228.8111743,0.00012998,2]
[326685406,1715223036956,-634.86149202,0.00012998,2]
[326685407,1715223036976,-1043.57255206,0.00012999,2]
[326685408,1715223036985,-6823.95744503,0.00012999,2]
[326685432,1715223049381,-485.27295591,0.000129,2]
[326685441,1715223049505,-653.16128158,0.000129,2]
[326685443,1715223049516,-915.52487413,0.000129,2]
[326685445,1715223049528,-590.83887464,0.000129,2]
[326685447,1715223049539,-618.0062181,0.000129,2]
[326685449,1715223049552,-8149.69795449,0.000129,2]
[326685451,1715223049561,-161.54,0.0001299,2]
[326685453,1715223049570,-161.54,0.0001299,2]
[326685455,1715223049579,-161.54,0.0001299,2]
[326685457,1715223049590,-161.54,0.0001299,2]
[326685459,1715223049601,-161.54,0.0001299,2]
[326685460,1715223049626,-161.54,0.0001299,2]
[326685462,1715223049635,-161.54,0.0001299,2]
[326685464,1715223049644,-161.54,0.0001299,2]
[326685466,1715223049653,-161.54,0.0001299,2]
[326685468,1715223049662,-161.54,0.0001299,2]
[326685470,1715223049672,-4633.21786091,0.00012999,2]
[326685472,1715223049681,-280822.2698874,0.00013,2]
[326685474,1715223049692,-3084232.41930001,0.00013,2]
[326685476,1715223049703,-1027704.55799199,0.00013,2]
[326685478,1715223049714,-7054.43033884,0.00013,2]
[326685480,1715223049729,-28265.22302614,0.00013,2]
[326685482,1715223049741,-2587.00758499,0.00013,2]
[326685515,1715224239774,-3057.4434008,0.00011645,2]
[326685518,1715224239784,-685.3229922,0.00011645,2]
[326685520,1715224239794,-1623.45850459,0.00011646,2]
[326685522,1715224239804,-299.188987,0.00011647,2]
[326685524,1715224239813,-200.0,0.00011663,2]
[326685527,1715224239823,-19468.48623103,0.00011707,2]
[326685528,1715224239833,-213.07,0.00011805,2]
[326685530,1715224239843,-250.0,0.00011851,2]
[326685532,1715224239853,-150.0,0.00011868,2]
[326685534,1715224239863,-150.0,0.00011868,2]
[326685536,1715224239874,-23900.0,0.00011869,2]
[326685538,1715224239887,-250.0,0.00011996,2]
[326685541,1715224239896,-221.73,0.00012035,2]
[326685544,1715224239906,-176.11,0.0001205,2]
[326685547,1715224239916,-386.41217458,0.00012093,2]
[326685550,1715224239929,-463.58,0.00012197,2]
[326685552,1715224239939,-19651.9,0.00012197,2]
[326685554,1715224239949,-174.9,0.00012328,2]
[326685556,1715224239962,-499.99,0.00012328,2]
[326685558,1715224239974,-211.12404217,0.00012345,2]
[326685560,1715224239985,-29686.49615022,0.00012347,2]
[326685562,1715224239995,-977.79567631,0.00012348,2]
[326685565,1715224240022,-1306.96388072,0.00012348,2]
[326685567,1715224240032,-1000.0,0.00012357,2]
[326685569,1715224240045,-252.08567376,0.000125,2]
[326685571,1715224240066,-595.59,0.00012575,2]
[326685573,1715224240083,-274.44,0.00012687,2]
[326685575,1715224240093,-1562.13781289,0.00012716,2]
[326685577,1715224240103,-3501.49195481,0.00012752,2]
[326685579,1715224240113,-171.72,0.00012815,2]
[326685581,1715224240123,-11848.27609479,0.000129,2]
[326685583,1715224240133,-155.61422252,0.000129,2]
[326685584,1715224240143,-155.0,0.000129,2]
[326685585,1715224240152,-307.735,0.000129,2]
[326685586,1715224240162,-6563.0519,0.000129,2]
[326685587,1715224240172,-26019.954,0.000129,2]
[326685588,1715224240182,-2500.0,0.000129,2]
[326685589,1715224240192,-289.28990979,0.000129,2]
[326685590,1715224240202,-1000.0,0.000129,2]
[326685591,1715224240212,-431.18600543,0.00012992,2]
[326685592,1715224240222,-155.0,0.00012998,2]
[326685593,1715224240232,-624.17805155,0.00012998,2]
[326685594,1715224240241,-1000.0,0.00012998,2]
[326685595,1715224240252,-345.77273743,0.00012998,2]
[326685596,1715224240262,-209.94006844,0.00012998,2]
[326685597,1715224240272,-377.00428015,0.00012998,2]
[326685598,1715224240281,-247.20768047,0.00012998,2]
[326685599,1715224240291,-785.74885426,0.00012998,2]
[326685600,1715224240301,-1512.76334421,0.00012998,2]
[326685601,1715224240311,-1873.37876933,0.00012998,2]
[326685602,1715224240321,-156.23998917,0.00012998,2]
[326685603,1715224240331,-175526.63484416,0.00013,2]
[326685604,1715224240340,-189.16780124,0.00013,2]
[326685605,1715224240350,-475.97026995,0.00013,2]
[326685606,1715224240361,-3000.0,0.00013,2]
[326685607,1715224240371,-210.0,0.00013054,2]
[326685608,1715224240382,-210.0,0.00013054,2]
[326685609,1715224240393,-452.77,0.00013425,2]
[326685610,1715224240403,-159.62,0.00013425,2]
[326685611,1715224240413,-301.14033573,0.00013698,2]
[326685612,1715224240423,-200.0,0.00013699,2]
[326685613,1715224240433,-7402.01,0.00013699,2]
[326685614,1715224240444,-385.65,0.00013699,2]
[326685615,1715224240454,-500.0,0.00013699,2]
[326685616,1715224240464,-1000.0,0.00013901,2]
[326685617,1715224240474,-287.16,0.00013987,2]
[326685618,1715224240484,-287.16,0.00013991,2]
[326685619,1715224240493,-287.16,0.00013994,2]
[326685620,1715224240503,-287.16,0.00013998,2]
[326685621,1715224240513,-193.82603638,0.00014,2]
[326685622,1715224240524,-287.16,0.00014002,2]
[326685623,1715224240534,-287.16,0.00014005,2]
[326685624,1715224240544,-287.16,0.00014009,2]
[326685625,1715224240554,-287.16,0.00014013,2]
[326685626,1715224240564,-287.16,0.00014016,2]
[326685627,1715224240575,-287.16,0.0001402,2]
[326685628,1715224240584,-287.16,0.00014024,2]
[326685629,1715224240595,-287.16,0.00014027,2]
[326685630,1715224240604,-287.16,0.00014031,2]
[326685631,1715224240614,-287.16,0.00014035,2]
[326685632,1715224240626,-171.91,0.00014035,2]
[326685633,1715224240636,-287.16,0.00014038,2]
[326685634,1715224240647,-287.16,0.00014042,2]
[326685635,1715224240657,-287.16,0.00014046,2]
[326685636,1715224240667,-287.16,0.0001405,2]
[326685637,1715224240678,-287.16,0.00014053,2]
[326685638,1715224240688,-287.16,0.00014057,2]
[326685639,1715224240698,-176.11,0.00014059,2]
[326685640,1715224240708,-274.44,0.00014273,2]
[326685641,1715224240718,-4214.08453482,0.00015,2]
[326685642,1715224240728,-155.37654687,0.00015,2]
[326685643,1715224240738,-618.36792039,0.00015,2]
[326685644,1715224240748,-155.0,0.00015,2]
[326685645,1715224240758,-1000.0,0.00015446,2]
[326685646,1715224240768,-155.0,0.000155,2]